bitfinex-derivatives/quotes_BTCF0:USTF0_20250322
["timestamp","ask_amount","ask_price","bid_price","bid_amount"]
[1742679413356,0.31212595,84064.0,84063.0,0.00365416]
[1742679413541,0.31412595,84064.0,84063.0,0.00365416]
[1742679414534,0.31412595,84064.0,84063.0,0.00065416]
[1742679414535,0.31512595,84064.0,84063.0,0.00065416]
[1742679415645,0.31512595,84064.0,84063.0,0.36145416]
[1742679416044,0.31612595,84064.0,84063.0,0.36145416]
[1742679416731,0.31612595,84064.0,84063.0,0.00065416]
[1742679416946,0.31612595,84064.0,84063.0,0.36145416]
[1742679417945,0.31712595,84064.0,84063.0,0.36145416]
[1742679419750,0.31612595,84064.0,84063.0,0.36145416]
[1742679420141,0.31312595,84064.0,84063.0,0.36145416]
[1742679420347,0.31712595,84064.0,84063.0,0.36145416]
[1742679420644,0.31712595,84064.0,84063.0,0.00065416]
[1742679427944,0.32664188,84064.0,84063.0,0.00065416]
[1742679428751,0.1189826,84061.0,84060.0,0.033]
[1742679429053,0.24301854,84061.0,84060.0,0.033]
[1742679429257,0.31449863,84061.0,84060.0,0.033]
[1742679429460,0.43345632,84061.0,84060.0,0.033]
[1742679429856,0.43645632,84061.0,84060.0,0.033]
[1742679430062,0.43945632,84061.0,84060.0,0.033]
[1742679433559,0.1189854,84059.0,84058.0,8e-05]
[1742679433863,0.13922143,84059.0,84058.0,8e-05]
[1742679434254,0.25818336,84059.0,84058.0,8e-05]
[1742679435865,0.32478336,84059.0,84058.0,8e-05]
[1742679436367,0.32778336,84059.0,84058.0,8e-05]
[1742679436755,0.32778336,84059.0,84058.0,9.98e-06]
[1742679437265,0.32778336,84059.0,84058.0,0.03070998]
[1742679437656,0.3279921,84059.0,84058.0,0.03070998]
[1742679439256,0.3279921,84059.0,84057.0,0.0309]
[1742679439469,0.15912746,84058.0,84057.0,0.02440902]
[1742679439659,0.16084747,84058.0,84057.0,0.02440902]
[1742679439864,0.22594747,84058.0,84057.0,0.02440902]
[1742679440268,0.35397704,84058.0,84057.0,0.02440902]
[1742679440566,0.3539938,84058.0,84057.0,0.02440902]
[1742679440975,0.34423638,84058.0,84057.0,0.02440902]
[1742679441170,0.34723638,84058.0,84057.0,0.02440902]
[1742679442371,0.35023638,84058.0,84057.0,0.02440902]
[1742679445061,0.35980448,84058.0,84057.0,0.02440902]
[1742679447574,0.1189897,84056.0,84055.0,0.01720674]
[1742679447773,0.13019781,84056.0,84055.0,0.01720674]
[1742679447975,0.19269381,84056.0,84055.0,0.01720674]
[1742679448380,0.3237317,84056.0,84055.0,0.01720674]
[1742679449572,0.3267317,84056.0,84055.0,0.00180001]
[1742679449771,0.3287317,84056.0,84055.0,0.00180001]
[1742679450080,0.33823122,84056.0,84055.0,0.00180001]
[1742679451274,0.1189925,84054.0,84053.0,0.0317]
[1742679451473,0.24305202,84054.0,84053.0,0.0317]
[1742679451777,0.31711612,84054.0,84053.0,0.0317]
[1742679451981,0.42658844,84054.0,84053.0,0.0317]
[1742679452181,0.43610299,84054.0,84053.0,0.0317]
[1742679452378,0.43810299,84054.0,84053.0,0.0317]
[1742679452767,0.43810299,84054.0,84053.0,0.1730939]
[1742679453177,0.43810299,84054.0,84053.0,0.0541]
[1742679453582,0.44010299,84054.0,84053.0,0.0541]
[1742679454573,0.44009754,84054.0,84053.0,0.0541]
[1742679455877,0.44009754,84054.0,84053.0,0.1730939]
[1742679456077,0.44009754,84054.0,84053.0,0.0541]
[1742679456269,0.44009754,84054.0,84053.0,0.1730939]
[1742679456778,0.44009754,84054.0,84053.0,0.0541]
[1742679457479,0.44009754,84054.0,84053.0,0.01689771]
[1742679458077,0.43058844,84054.0,84053.0,0.01689771]
[1742679459187,0.43058844,84054.0,84053.0,0.13589161]
[1742679459686,0.43058844,84054.0,84053.0,0.01689771]
[1742679460083,0.1189939,84053.0,84052.0,0.00017844]
[1742679460288,0.12063391,84053.0,84052.0,0.00017844]
[1742679460491,0.12063391,84053.0,84052.0,0.11917374]
[1742679460492,0.18493391,84053.0,84052.0,0.11917374]
[1742679460782,0.31297127,84053.0,84052.0,0.11917374]
[1742679461185,0.31297127,84053.0,84052.0,0.03337844]
[1742679461587,0.31497127,84053.0,84052.0,0.03337844]
[1742679462692,0.31597127,84053.0,84052.0,0.03337844]
[1742679463383,0.31597127,84053.0,84052.0,0.15237374]
[1742679463579,0.31597127,84053.0,84052.0,0.03337844]
[1742679464502,0.31597127,84053.0,84052.0,0.01647844]
[1742679464695,0.31597127,84053.0,84052.0,0.00017844]
[1742679466987,0.31597127,84053.0,84052.0,1.936e-05]
[1742679471182,0.67677127,84053.0,84052.0,1.936e-05]
[1742679471381,0.78518115,84053.0,84052.0,1.936e-05]
[1742679471586,0.84214486,84053.0,84052.0,1.936e-05]
[1742679471999,0.8141657,84053.0,84052.0,1.936e-05]
[1742679473695,0.84214211,84053.0,84052.0,1.936e-05]
[1742679474290,0.73373223,84053.0,84052.0,1.936e-05]
[1742679474501,0.70474768,84053.0,84052.0,1.936e-05]
[1742679474700,0.67677127,84053.0,84052.0,1.936e-05]
[1742679477202,0.1189953,84052.0,84051.0,1.151e-05]
[1742679477402,0.15191531,84052.0,84051.0,1.151e-05]
[1742679477604,0.21501531,84052.0,84051.0,1.151e-05]
[1742679477805,0.22407941,84052.0,84051.0,1.151e-05]
[1742679478003,0.34305408,84052.0,84051.0,1.151e-05]
[1742679478709,0.34405408,84052.0,84051.0,1.151e-05]
[1742679479402,0.70485408,84052.0,84051.0,1.151e-05]
[1742679480403,0.70585408,84052.0,84051.0,1.151e-05]
[1742679484415,0.119001,84048.0,84047.0,8.064e-05]
[1742679484707,0.25213202,84048.0,84047.0,8.064e-05]
[1742679485007,0.31293202,84048.0,84047.0,8.064e-05]
[1742679485216,0.43190669,84048.0,84047.0,8.064e-05]
[1742679485913,0.43194517,84048.0,84047.0,8.064e-05]
[1742679486509,0.1190052,84045.0,84044.0,0.12549892]
[1742679486714,0.1303106,84045.0,84044.0,0.12549892]
[1742679486908,0.1931106,84045.0,84044.0,0.00649232]
[1742679487105,0.2021747,84045.0,84044.0,0.00649232]
[1742679487306,0.32115503,84045.0,84044.0,0.00649232]
[1742679487502,0.33303144,84045.0,84044.0,0.00649232]
[1742679487910,0.33317446,84045.0,84044.0,0.00749232]
[1742679488111,0.33317446,84045.0,84044.0,0.001]
[1742679488311,0.34848419,84045.0,84044.0,0.002]
[1742679488920,0.34848419,84045.0,84044.0,0.1210067]
[1742679490522,0.34848419,84045.0,84044.0,0.002]
[1742679491422,0.34848419,84045.0,84043.0,0.10083795]
[1742679491423,0.1190067,84044.0,84043.0,0.10083795]
[1742679491628,0.14677442,84044.0,84043.0,0.10083795]
[1742679491812,0.21017442,84044.0,84043.0,0.10083795]
[1742679492213,0.32916042,84044.0,84043.0,0.10083795]
[1742679492513,0.33721495,84044.0,84043.0,0.10083795]
[1742679493817,0.33721495,84044.0,84043.0,0.10183795]
[1742679494016,0.33721495,84044.0,84043.0,0.10283795]
[1742679494526,0.1190095,84042.0,84041.0,0.056799]
[1742679494834,0.13037792,84042.0,84041.0,0.056799]
[1742679495031,0.19417792,84042.0,84041.0,0.056799]
[1742679495233,0.31316392,84042.0,84041.0,0.056799]
[1742679495635,0.33753775,84042.0,84041.0,0.056799]
[1742679496736,0.33753775,84042.0,84041.0,0.057799]
[1742679497037,0.33753775,84042.0,84041.0,0.058799]
[1742679499139,0.33749937,84042.0,84041.0,0.058799]
[1742679500440,0.31249961,84042.0,84041.0,0.058799]
[1742679504936,0.31249961,84042.0,84041.0,0.002]
[1742679505137,0.31249961,84042.0,84041.0,0.1210109]
[1742679511349,0.31249961,84042.0,84041.0,0.002]
[1742679512938,0.31249961,84042.0,84041.0,0.1210109]
[1742679516254,0.31249961,84042.0,84041.0,0.002]
[1742679517245,0.31249961,84042.0,84041.0,0.1210109]
[1742679517637,0.32789209,84042.0,84041.0,0.0942216]
[1742679518654,0.31249961,84042.0,84041.0,0.0942216]
[1742679522743,0.1190123,84040.0,84039.0,0.3608]
[1742679522948,0.12073231,84040.0,84039.0,0.4798137]
[1742679523147,0.19269641,84040.0,84039.0,0.4798137]
[1742679523655,0.31168524,84040.0,84039.0,0.4798137]
[1742679524362,0.31168524,84040.0,84039.0,0.4818137]
[1742679525661,0.31168524,84040.0,84039.0,0.4838137]
[1742679527857,0.31168524,84040.0,84039.0,0.1230137]
[1742679528164,0.31168524,84040.0,84039.0,0.4838137]
[1742679528650,0.31168524,84040.0,84039.0,0.3648]
[1742679528856,0.31168524,84040.0,84039.0,0.4838137]
[1742679530663,0.31168524,84040.0,84039.0,0.3648]
[1742679531065,0.31168524,84040.0,84039.0,0.4838137]
[1742679531756,0.33664479,84040.0,84039.0,0.4838137]
[1742679531948,0.33664479,84040.0,84039.0,0.3648]
[1742679532954,0.33664479,84040.0,84039.0,0.4798137]
[1742679533152,0.33664479,84040.0,84039.0,0.45702431]
[1742679534164,0.32129665,84040.0,84039.0,0.45702431]
[1742679534760,0.31168524,84040.0,84039.0,0.45702431]
[1742679535859,0.31168524,84040.0,84039.0,0.33801061]
[1742679536060,0.31168524,84040.0,84039.0,0.45702431]
[1742679537657,0.31168524,84040.0,84039.0,0.1190137]
[1742679539166,0.1190137,84039.0,84038.0,0.36088]
[1742679539376,0.18283371,84039.0,84038.0,0.36088]
[1742679539761,0.19189781,84039.0,84038.0,0.36088]
[1742679539961,0.31088947,84039.0,84038.0,0.36088]
[1742679540565,0.31088947,84039.0,84038.0,0.36488]
[1742679540969,0.31088947,84039.0,84038.0,0.00408]
[1742679541775,0.31088947,84039.0,84038.0,0.004]
[1742679542769,0.1190152,84038.0,84037.0,0.08588612]
[1742679542976,0.19466297,84038.0,84037.0,0.08588612]
[1742679543172,0.119018,84036.0,84035.0,0.479819]
[1742679543368,0.13924987,84036.0,84035.0,0.499819]
[1742679543571,0.20134987,84036.0,84035.0,0.499819]
[1742679543772,0.19182211,84036.0,84035.0,0.499819]
[1742679544174,0.31081943,84036.0,84035.0,0.499819]
[1742679544567,0.32613032,84036.0,84035.0,0.499819]
[1742679544767,0.33563461,84036.0,84035.0,0.499819]
[1742679545168,0.33563461,84036.0,84035.0,0.141019]
[1742679545379,0.33563461,84036.0,84035.0,0.501819]
[1742679546279,0.33563461,84036.0,84035.0,0.504819]
[1742679546471,0.32613032,84036.0,84035.0,0.504819]
[1742679546671,0.3203213,84036.0,84035.0,0.504819]
[1742679546875,0.31081943,84036.0,84035.0,0.504819]
[1742679549365,0.31081943,84036.0,84035.0,0.484819]
[1742679549570,0.31081943,84036.0,84035.0,0.504819]
[1742679549773,0.32264505,84036.0,84035.0,0.504819]
[1742679550784,0.32264505,84036.0,84035.0,0.3858]
[1742679552384,0.32264505,84036.0,84035.0,0.5048194]
[1742679555094,0.31081943,84036.0,84035.0,0.5048194]
[1742679556283,0.3229791,84036.0,84035.0,0.5048194]
[1742679560294,0.313915,84036.0,84035.0,0.5048194]
[1742679560490,0.30175533,84036.0,84035.0,0.5048194]
[1742679568996,0.30175533,84036.0,84035.0,0.3858]
[1742679569309,0.30175533,84036.0,84035.0,0.025]
[1742679570108,0.30175533,84036.0,84035.0,0.1440194]
[1742679574515,0.30175533,84036.0,84035.0,0.1430194]
[1742679578223,0.30175533,84036.0,84035.0,0.024]
[1742679581019,0.30175533,84036.0,84035.0,0.004]
[1742679581321,0.30175533,84036.0,84035.0,0.024]
[1742679583611,0.30175533,84036.0,84035.0,0.1430194]
[1742679585514,0.30175533,84036.0,84035.0,0.024]
[1742679600225,0.30175533,84036.0,84035.0,0.1430194]
[1742679600420,0.30175533,84036.0,84035.0,0.024]
[1742679600828,0.30175533,84036.0,84035.0,0.004]
[1742679601033,0.0595104,84034.0,84018.0,0.27373456]
[1742679601223,0.119035,84024.0,84018.0,0.21421356]
[1742679601425,0.13196638,84024.0,84020.0,0.1785601]
[1742679601624,0.13196638,84024.0,84023.0,0.1191164]
[1742679601833,0.2825637,84024.0,84023.0,0.1191164]
[1742679602027,0.30385233,84024.0,84023.0,0.1191164]
[1742679602734,0.31572625,84024.0,84023.0,0.1201164]
[1742679603130,0.31672625,84024.0,84023.0,0.1191164]
[1742679603536,0.31672625,84024.0,84023.0,0.1201164]
[1742679603927,0.31672625,84024.0,84023.0,0.00108]
[1742679604131,0.31672625,84024.0,84023.0,0.1201164]
[1742679604330,0.31772625,84024.0,84023.0,0.1191164]
[1742679610155,0.31772625,84024.0,84023.0,0.1190364]
[1742679611340,0.1190364,84023.0,84022.0,0.1190369]
[1742679611541,0.12067641,84023.0,84022.0,0.1190369]
[1742679611742,0.1190378,84022.0,84021.0,0.4798392]
[1742679611944,0.23559781,84022.0,84021.0,0.4798392]
[1742679612144,0.26799781,84022.0,84021.0,0.4798392]
[1742679612444,0.29859781,84022.0,84021.0,0.4798392]
[1742679612640,0.41761496,84022.0,84021.0,0.4798392]
[1742679614443,0.41761496,84022.0,84021.0,0.3608]
[1742679614644,0.41761496,84022.0,84021.0,0.4798392]
[1742679615031,0.41761496,84022.0,84021.0,0.3608]
[1742679615233,0.41861496,84022.0,84021.0,0.3608]
[1742679615837,0.41961496,84022.0,84021.0,0.3608]
[1742679616040,0.41961496,84022.0,84021.0,0.4798392]
[1742679616546,0.41961496,84022.0,84021.0,0.3608]
[1742679617047,0.42161496,84022.0,84021.0,0.3608]
[1742679617947,0.30669496,84022.0,84021.0,0.4798392]
[1742679618248,0.42153496,84022.0,84021.0,0.4798392]
[1742679621852,0.30669496,84022.0,84021.0,0.4798392]
[1742679638445,0.30669496,84022.0,84021.0,0.1190392]
[1742679652251,0.18765716,84022.0,84021.0,0.1190392]
[1742679654065,0.30669496,84022.0,84021.0,0.1190392]
[1742679700612,0.18765716,84022.0,84021.0,0.1190392]
[1742679700828,0.30669496,84022.0,84021.0,0.1190392]
[1742679706908,0.18765716,84022.0,84021.0,0.1190392]
[1742679709312,0.30669496,84022.0,84021.0,0.1190392]
[1742679716020,0.1190392,84021.0,84020.0,0.1190393]
[1742679716210,0.12301715,84022.0,84021.0,0.1190392]
[1742679716409,0.00564001,84022.0,84021.0,0.1190392]
[1742679716815,0.24369638,84022.0,84021.0,0.1190392]
[1742679717124,0.24169638,84022.0,84021.0,0.1190392]
[1742679719122,0.24369638,84022.0,84021.0,0.1190392]
[1742679719917,0.12465858,84022.0,84021.0,0.1190392]
[1742679720723,0.24369638,84022.0,84021.0,0.1190392]
[1742679721225,0.12465858,84022.0,84021.0,0.1190392]
[1742679721723,0.24369638,84022.0,84021.0,0.1190392]
[1742679722322,0.12465858,84022.0,84021.0,0.1190392]
[1742679724322,0.24369638,84022.0,84021.0,0.1190392]
[1742679728920,0.27659638,84022.0,84021.0,0.1190392]
[1742679738738,0.15755858,84022.0,84021.0,0.1190392]
[1742679738941,0.27659638,84022.0,84021.0,0.1190392]
[1742679740936,0.30959638,84022.0,84021.0,0.1190392]
[1742679769486,0.1190407,84020.0,84019.0,0.4203207]
[1742679769677,0.12068071,84020.0,84019.0,0.4203207]
[1742679769978,0.21488071,84020.0,84019.0,0.4203207]
[1742679770181,0.33389786,84020.0,84019.0,0.4203207]
[1742679771775,0.33489786,84020.0,84019.0,0.4203207]
[1742679772066,0.33589786,84020.0,84019.0,0.4203207]
[1742679772480,0.33589786,84020.0,84019.0,0.3608]
[1742679772875,0.33589786,84020.0,84019.0,0.4798421]
[1742679773273,0.34714313,84020.0,84019.0,0.4798421]
[1742679773485,0.34714313,84020.0,84019.0,0.1190421]
[1742679773782,0.34714313,84020.0,84019.0,0.4798421]
[1742679777383,0.35626575,84020.0,84019.0,0.4798421]
[1742679778377,0.34502048,84020.0,84019.0,0.4798421]
[1742679778582,0.35653484,84020.0,84019.0,0.4798421]
[1742679779289,0.35653484,84020.0,84019.0,0.1190421]
[1742679779583,0.35653484,84020.0,84019.0,0.4798421]
[1742679779987,0.35653484,84020.0,84019.0,0.1190421]
[1742679780182,0.35653484,84020.0,84019.0,0.4798421]
[1742679780786,0.35654051,84020.0,84019.0,0.4798421]
[1742679781691,0.3565407,84020.0,84019.0,0.4798421]
[1742679783693,0.35653334,84020.0,84019.0,0.4798421]
[1742679784581,0.34502048,84020.0,84019.0,0.4798421]
[1742679784788,0.22597978,84020.0,84019.0,0.4798421]
[1742679784988,0.23748939,84020.0,84019.0,0.4798421]
[1742679785491,0.21685716,84020.0,84019.0,0.4798421]
[1742679785685,0.23774349,84020.0,84019.0,0.4798421]
[1742679786892,0.35678419,84020.0,84019.0,0.4798421]
[1742679787487,0.35677078,84020.0,84019.0,0.4798421]
[1742679788088,0.35677078,84020.0,84019.0,0.1190421]
[1742679788291,0.35677078,84020.0,84019.0,0.4798421]
[1742679788887,0.35677078,84020.0,84019.0,0.1190421]
[1742679789386,0.35677078,84020.0,84019.0,0.4798421]
[1742679796494,0.35677078,84020.0,84019.0,0.1190421]
[1742679796694,0.35677078,84020.0,84019.0,0.4798421]
[1742679797298,0.22626161,84020.0,84019.0,0.4798421]
[1742679797496,0.23766676,84020.0,84019.0,0.4798421]
[1742679797705,0.22626161,84020.0,84019.0,0.49201357]
[1742679798004,0.23766691,84020.0,84019.0,0.49201357]
[1742679799102,0.2376736,84020.0,84019.0,0.49201357]
[1742679799305,0.22626161,84020.0,84019.0,0.49201357]
[1742679800098,0.34530231,84020.0,84019.0,0.49201357]
[1742679800905,0.22626161,84020.0,84019.0,0.13121357]
[1742679801105,0.22626161,84020.0,84019.0,0.49201357]
[1742679808405,0.22626161,84020.0,84019.0,0.13121357]
[1742679808810,0.22626161,84020.0,84019.0,0.49201357]
[1742679810311,0.21685716,84020.0,84019.0,0.49201357]
[1742679811421,0.21685716,84020.0,84019.0,0.13121357]
[1742679811714,0.21685716,84020.0,84019.0,0.49201357]
[1742679815211,0.21685716,84020.0,84019.0,0.13121357]
[1742679815418,0.21685716,84020.0,84019.0,0.49201357]
[1742679816118,0.21685716,84020.0,84019.0,0.13121357]
[1742679816307,0.21685716,84020.0,84019.0,0.49201357]
[1742679829423,0.22594618,84020.0,84019.0,0.49201357]
[1742679831830,0.22594618,84020.0,84019.0,0.4798421]
[1742679832029,0.34498688,84020.0,84019.0,0.3608]
[1742679832226,0.22594618,84020.0,84019.0,0.4798421]
[1742679832432,0.34498688,84020.0,84019.0,0.3608]
[1742679832629,0.23710795,84020.0,84019.0,0.4798421]
[1742679834230,0.35614865,84020.0,84019.0,0.4798421]
[1742679835026,0.23710795,84020.0,84019.0,0.4798421]
[1742679835627,0.23710795,84020.0,84019.0,0.1190421]
[1742679836130,0.35614865,84020.0,84019.0,0.1190421]
[1742679837535,0.35615398,84020.0,84019.0,0.1190421]
[1742679839430,0.35616799,84020.0,84019.0,0.1190421]
[1742679840236,0.23712729,84020.0,84019.0,0.1190421]
[1742679840428,0.35616799,84020.0,84019.0,0.1190421]
[1742679840628,0.23712729,84020.0,84019.0,0.1190421]
[1742679841630,0.34498688,84020.0,84019.0,0.1190421]
[1742679844927,0.46458113,84020.0,84019.0,0.1190421]
[1742679846442,0.34554043,84020.0,84019.0,0.1190421]
[1742679848038,0.48759485,84020.0,84019.0,0.1190421]
[1742679848545,0.60663555,84020.0,84019.0,0.1190421]
[1742679850640,0.48759485,84020.0,84019.0,0.1190421]
[1742679851535,0.54547926,84020.0,84019.0,0.1190421]
[1742679852845,0.54547926,84020.0,84019.0,0.08182584]
[1742679853438,0.53639024,84020.0,84019.0,0.08182584]
[1742679854849,0.39433582,84020.0,84019.0,0.08182584]
[1742679855248,0.39433582,84020.0,84019.0,0.09349873]
[1742679856649,0.39433582,84020.0,84019.0,0.08182584]
[1742679858638,0.40332621,84020.0,84019.0,0.44262584]
[1742679858835,0.4128477,84020.0,84019.0,0.4545195]
[1742679859151,0.4128477,84020.0,84019.0,0.3608]
[1742679859851,0.40332621,84020.0,84019.0,0.4798421]
[1742679861848,0.4128677,84020.0,84019.0,0.4798421]
[1742679863152,0.4128677,84020.0,84019.0,0.44262632]
[1742679863950,0.4128677,84020.0,84019.0,0.1190421]
[1742679865959,0.44031175,84020.0,84019.0,0.1190421]
[1742679866859,0.43077026,84020.0,84019.0,0.1190421]
[1742679867060,0.40332621,84020.0,84019.0,0.1190421]
[1742679869854,0.54538063,84020.0,84019.0,0.1190421]
[1742679870359,0.66442133,84020.0,84019.0,0.1190421]
[1742679870563,0.69186538,84020.0,84019.0,0.1190421]
[1742679870861,0.69186538,84020.0,84019.0,0.08182665]
[1742679870862,0.70142933,84020.0,84019.0,0.08182665]
[1742679871364,0.70142961,84020.0,84019.0,0.08182665]
[1742679871861,0.69186538,84020.0,84019.0,0.08182665]
[1742679873164,0.97759717,84020.0,84019.0,0.08182665]
[1742679874462,0.95015312,84020.0,84019.0,0.08182665]
[1742679875564,0.97799243,84020.0,84019.0,0.08182665]
[1742679876864,0.95015312,84020.0,84019.0,0.08182665]
[1742679877063,0.9780113,84020.0,84019.0,0.08182665]
[1742679880861,0.8589706,84020.0,84019.0,0.08182665]
[1742679881061,0.83111242,84020.0,84019.0,0.08182665]
[1742679881862,0.8589706,84020.0,84019.0,0.08182665]
[1742679883170,0.83111242,84020.0,84019.0,0.08182665]
[1742679884071,0.84063714,84020.0,84018.0,0.4203217]
[1742679884255,0.07152472,84019.0,84018.0,0.5393652]
[1742679884460,0.08051511,84019.0,84018.0,0.5393652]
[1742679884761,0.08219511,84019.0,84018.0,0.5393652]
[1742679884964,0.19169037,84019.0,84018.0,0.5393652]
[1742679885165,0.18269998,84019.0,84018.0,0.5393652]
[1742679885364,0.19199032,84019.0,84018.0,0.5393652]
[1742679885972,0.19299032,84019.0,84018.0,0.5393652]
[1742679886473,0.19399032,84019.0,84018.0,0.5393652]
[1742679888677,0.37146898,84019.0,84018.0,0.5393652]
[1742679889871,0.37146898,84019.0,84018.0,0.4798435]
[1742679890175,0.37146898,84019.0,84018.0,0.5393652]
[1742679898583,0.36217864,84019.0,84018.0,0.5393652]
[1742679901578,0.36217864,84019.0,84018.0,0.1785652]
[1742679901783,0.36217864,84019.0,84018.0,0.5393652]
[1742679908192,0.36217864,84019.0,84018.0,0.1785652]
[1742679908496,0.36217864,84019.0,84018.0,0.5393652]
[1742679909288,0.36217864,84019.0,84018.0,0.6547652]
[1742679912390,0.36217864,84019.0,84018.0,0.2939652]
[1742679912590,0.36217864,84019.0,84018.0,0.6547652]
[1742679915291,0.24258439,84019.0,84018.0,0.6547652]
[1742679922404,0.24258439,84019.0,84018.0,0.6549252]
[1742679924009,0.37207821,84019.0,84018.0,0.6549252]
[1742679925708,0.37207821,84019.0,84018.0,0.2941252]
[1742679925910,0.37207821,84019.0,84018.0,0.6549252]
[1742679926800,0.37207821,84019.0,84018.0,0.2941252]
[1742679927002,0.37207821,84019.0,84018.0,0.6549252]
[1742679927709,0.37207821,84019.0,84018.0,0.2941252]
[1742679928005,0.37207821,84019.0,84018.0,0.6549252]
[1742679928409,0.37207821,84019.0,84018.0,0.2941252]
[1742679928906,0.37207821,84019.0,84018.0,0.6549252]
[1742679930608,0.37207821,84019.0,84018.0,0.2941252]
[1742679930797,0.37207821,84019.0,84018.0,0.6549252]
[1742679934307,0.62209665,84019.0,84018.0,0.6549252]
[1742679934910,0.62209665,84019.0,84018.0,0.2941252]
[1742679935120,0.62209665,84019.0,84018.0,0.6549252]
[1742679938818,0.24258439,84019.0,84018.0,0.6549252]
[1742679942420,0.24258439,84019.0,84018.0,0.2941252]
[1742679942918,0.24258439,84019.0,84018.0,0.6549252]
[1742679946216,0.37170609,84019.0,84018.0,0.6549252]
[1742679946610,0.37170609,84019.0,84018.0,0.2941252]
[1742679946812,0.37170609,84019.0,84018.0,0.6549252]
[1742679947315,0.37170609,84019.0,84018.0,0.2941252]
[1742679947519,0.37170609,84019.0,84018.0,0.6549252]
[1742679950323,0.37170609,84019.0,84018.0,0.2941252]
[1742679950522,0.37170609,84019.0,84018.0,0.6549252]
[1742679954424,0.37170609,84019.0,84018.0,0.2941252]
[1742679955129,0.37170609,84019.0,84018.0,0.6549252]
[1742679959429,0.24258439,84019.0,84018.0,0.6549252]
[1742679961125,0.24090439,84019.0,84018.0,0.6549252]
[1742679961736,0.24090439,84019.0,84018.0,0.2941252]
[1742679961921,0.2426244,84019.0,84018.0,0.2941252]
[1742679962128,0.2426244,84019.0,84018.0,0.6549252]
[1742679962338,0.24090439,84019.0,84018.0,0.6549252]
[1742679966434,0.24090439,84019.0,84018.0,0.2941252]
[1742679966638,0.2425444,84019.0,84018.0,0.6549252]
[1742679966843,0.24090439,84019.0,84018.0,0.6549252]
[1742679967237,0.12188441,84019.0,84018.0,0.6549252]
[1742679967444,0.25108971,84019.0,84018.0,0.6549252]
[1742679971547,0.12188441,84019.0,84018.0,0.6549252]
[1742679971749,0.12352442,84019.0,84018.0,0.6549252]
[1742679971949,0.12352442,84019.0,84018.0,1.0157252]
[1742679976653,0.06564001,84019.0,84018.0,1.0157252]
[1742679979055,0.21406414,84025.0,84022.0,0.0595182]
[1742679979255,0.14608894,84025.0,84024.0,0.119035]
[1742679979441,0.14608894,84025.0,84024.0,0.234995]
[1742679979641,0.14732895,84025.0,84024.0,0.234995]
[1742679979843,5e-08,84025.0,84024.0,0.234995]
[1742679980041,0.00017844,84032.0,84031.0,0.1190251]
[1742679980245,0.00097844,84032.0,84031.0,0.5953451]
[1742679980457,0.00089844,84032.0,84031.0,0.5953451]
[1742679981149,0.00089844,84032.0,84031.0,0.6258451]
[1742679981952,0.00489844,84032.0,84031.0,0.6258451]
[1742679982139,0.00489844,84032.0,84031.0,0.6559451]
[1742679982348,0.44637701,84048.0,84047.0,0.1190024]
[1742679982652,0.06072231,84052.0,84051.0,0.1189967]
[1742679982853,0.06132232,84052.0,84051.0,0.2351967]
[1742679983154,0.06132232,84052.0,84051.0,0.2985967]
[1742679983955,0.06132232,84052.0,84051.0,0.5485967]
[1742679984856,0.00060001,84052.0,84051.0,0.5515967]
[1742679985060,0.0324,84055.0,84054.0,0.1189925]
[1742679985261,0.0324,84055.0,84054.0,0.4809125]
[1742679985860,0.0324,84055.0,84054.0,0.8417125]
[1742679986760,0.0324,84055.0,84054.0,0.8437125]
[1742679987559,0.0324,84055.0,84054.0,0.8457125]
[1742679988256,0.0004,84056.0,84055.0,0.1189911]
[1742679988467,0.0004,84056.0,84055.0,0.1821911]
[1742679988654,1e-07,84056.0,84055.0,0.1821911]
[1742679989052,4e-08,84060.0,84059.0,0.1189854]
[1742679989257,4e-08,84060.0,84059.0,0.2353054]
[1742679989761,4e-08,84060.0,84059.0,0.24441656]
[1742679990058,4e-08,84060.0,84059.0,0.27451656]
[1742679990253,0.0332,84070.0,84066.0,0.0594875]
[1742679990455,0.0332,84070.0,84069.0,0.8405713]
[1742679991460,0.0332,84070.0,84069.0,1.1117713]
[1742679991662,0.0332,84070.0,84069.0,1.1105713]
[1742679991854,0.0352,84070.0,84069.0,1.1105713]
[1742679992254,0.0362,84070.0,84069.0,1.1105713]
[1742679993058,0.00017844,84078.0,84070.0,0.1189699]
[1742679993363,0.00017844,84078.0,84070.0,0.4400699]
[1742679993564,0.0637,84071.0,84070.0,0.4400699]
[1742679994158,0.00017844,84078.0,84071.0,0.1189684]
[1742679994357,1e-07,84072.0,84071.0,0.4406684]
[1742679996160,1e-07,84072.0,84071.0,0.4417884]
[1742679996757,4e-08,84078.0,84077.0,0.11896]
[1742679997059,4e-08,84078.0,84077.0,0.59588]
[1742679997265,4e-08,84078.0,84077.0,0.87588]
[1742679997459,0.0004,84088.0,84087.0,0.1189458]
[1742679997667,0.0004,84088.0,84087.0,0.5959058]
[1742679998359,0.0004,84088.0,84087.0,0.6618058]
[1742679999868,0.0034,84088.0,84087.0,0.6618058]
[1742680000059,0.0054,84088.0,84087.0,0.6618058]
[1742680000260,0.0054,84088.0,84087.0,0.67386492]
[1742680009176,0.0054,84088.0,84087.0,0.31306492]
[1742680009371,0.0054,84088.0,84087.0,1.03466492]
[1742680020882,0.0054,84088.0,84087.0,1.51558435]
[1742680021776,0.0054,84088.0,84087.0,0.79398435]
[1742680021980,0.0054,84088.0,84087.0,1.51558435]
[1742680023568,0.0054,84088.0,84087.0,0.79398435]
[1742680023878,0.0054,84088.0,84087.0,1.51558435]
[1742680025180,0.0367,84088.0,84087.0,1.51558435]
[1742680028477,0.0367,84088.0,84087.0,0.79398435]
[1742680028985,0.0367,84088.0,84087.0,1.51558435]
[1742680031581,0.0367,84088.0,84087.0,0.79398435]
[1742680031889,0.0367,84088.0,84087.0,1.51558435]
[1742680035194,0.0367,84088.0,84087.0,1.03466492]
[1742680037692,0.0367,84088.0,84087.0,0.31306492]
[1742680037888,0.0367,84088.0,84087.0,1.03466492]
[1742680038085,0.0367,84088.0,84087.0,0.31306492]
[1742680038292,0.0367,84088.0,84087.0,1.03466492]
[1742680039282,0.0367,84088.0,84087.0,0.31306492]
[1742680039485,0.0367,84088.0,84087.0,1.03466492]
[1742680039687,0.0367,84088.0,84087.0,0.31306492]
[1742680039887,0.0367,84088.0,84087.0,1.03466492]
[1742680041191,0.0367,84088.0,84087.0,0.31306492]
[1742680041384,0.0367,84088.0,84087.0,1.03466492]
[1742680041778,0.0367,84088.0,84087.0,0.31306492]
[1742680041983,0.0367,84088.0,84087.0,1.03466492]
[1742680044187,0.0367,84088.0,84087.0,0.31306492]
[1742680044487,0.0367,84088.0,84087.0,1.03466492]
[1742680045089,0.0367,84088.0,84087.0,0.31306492]
[1742680045287,0.0367,84088.0,84087.0,1.03466492]
[1742680046888,0.0367,84088.0,84087.0,0.31306492]
[1742680047080,0.0367,84088.0,84087.0,1.03466492]